fUSD/lending_fUSD_20250602
["ID","MTS","AMOUNT","RATE_DAILY","PERIOD"]
[363790779,1748873375948,-420.0,0.00019452,2]
[363790780,1748873375973,-420.0,0.00019452,2]
[363790781,1748873375997,-420.0,0.00019452,2]
[363790782,1748873376022,-420.0,0.00019452,2]
[363790783,1748873376047,-420.0,0.00019452,2]
[363790784,1748873376073,-420.0,0.00019452,2]
[363790785,1748873376097,-420.0,0.00019452,2]
[363790786,1748873376122,-420.0,0.00019452,2]
[363790787,1748873376146,-420.0,0.00019452,2]
[363790788,1748873376172,-420.0,0.00019452,2]
[363790789,1748873376199,-420.0,0.00019452,2]
[363790790,1748873376224,-420.0,0.00019452,2]
[363790791,1748873376249,-492.78,0.00019452,2]
[363790792,1748873376274,-420.0,0.00019452,2]
[363790793,1748873376299,-420.0,0.00019452,2]
[363790794,1748873376325,-420.0,0.00019452,2]
[363790795,1748873376349,-420.0,0.00019452,2]
[363790796,1748873376374,-420.0,0.00019452,2]
[363790797,1748873376400,-420.0,0.00019452,2]
[363790798,1748873376424,-420.0,0.00019452,2]
[363790799,1748873376453,-420.0,0.00019452,2]
[363790800,1748873376478,-420.0,0.00019452,2]
[363790801,1748873376503,-402.22,0.00019452,2]
[363790802,1748873376528,-1445.87,0.00019452,2]
[363790803,1748873376555,-420.0,0.00019452,2]
[363790804,1748873376584,-843.91,0.00019452,2]
[363790805,1748873376609,-915.6,0.00019452,2]
[363790806,1748873376634,-420.0,0.00019452,2]
[363790807,1748873376660,-6089.36,0.00019452,2]
[363790808,1748873376688,-420.0,0.00019452,2]
[363790809,1748873376715,-420.0,0.00019452,2]
[363790810,1748873376739,-507.9,0.00019452,2]
[363790811,1748873376763,-420.0,0.00019452,2]
[363790812,1748873376788,-932.22,0.00019452,2]
[363790813,1748873376812,-420.0,0.00019452,2]
[363790814,1748873376840,-420.0,0.00019452,2]
[363790815,1748873376866,-1791.73,0.00019452,2]
[363790816,1748873376892,-770.85,0.00019452,2]
[363790817,1748873376915,-985.29,0.00019452,2]
[363790818,1748873376939,-420.0,0.00019452,2]
[363790819,1748873376962,-420.0,0.00019452,2]
[363790820,1748873376986,-420.0,0.00019452,2]
[363790821,1748873377011,-420.0,0.00019452,2]
[363790822,1748873377036,-1104.8,0.00019452,2]
[363790823,1748873377062,-420.0,0.00019452,2]
[363790824,1748873377087,-482.41,0.00019452,2]
[363790825,1748873377111,-617.32,0.00019452,2]
[363790826,1748873377140,-1951.21,0.00019452,2]
[363790827,1748873377165,-437.13,0.00019452,2]
[363790828,1748873377190,-420.0,0.00019452,2]
[363790829,1748873377217,-2687.95,0.00019452,2]
[363790830,1748873377244,-420.0,0.00019452,2]
[363790831,1748873377270,-497.44,0.00019452,2]
[363790832,1748873377295,-2986.15,0.00019452,2]
[363790833,1748873377320,-581.7,0.00019452,2]
[363790834,1748873377345,-420.0,0.00019452,2]
[363790835,1748873377372,-631.16,0.00019452,2]
[363790836,1748873377397,-420.0,0.00019452,2]
[363790837,1748873377420,-485.84,0.00019452,2]
[363790838,1748873377445,-420.0,0.00019452,2]
[363790839,1748873377470,-420.0,0.00019452,2]
[363790840,1748873377494,-733.7,0.00019452,2]
[363790841,1748873377520,-420.0,0.00019452,2]
[363790842,1748873377546,-574.97,0.00019452,2]
[363790843,1748873377574,-420.0,0.00019452,2]
[363790844,1748873377603,-420.0,0.00019452,2]
[363790845,1748873377630,-746.85,0.00019452,2]
[363790846,1748873377656,-420.0,0.00019452,2]
[363790847,1748873377681,-11682.92,0.00019452,2]
[363790848,1748873377705,-420.0,0.00019452,2]
[363790849,1748873377730,-556.32,0.00019452,2]
[363790850,1748873377755,-420.0,0.00019452,2]
[363790851,1748873377780,-420.0,0.00019452,2]
[363790852,1748873377804,-835.08,0.00019452,2]
[363790853,1748873377834,-909.26,0.00019452,2]
[363790854,1748873377859,-420.0,0.00019452,2]
[363790855,1748873377884,-420.0,0.00019452,2]
[363790856,1748873377911,-625.66,0.00019452,2]
[363790857,1748873377938,-420.0,0.00019452,2]
[363790858,1748873377963,-420.0,0.00019452,2]
[363790859,1748873377988,-640.86,0.00019452,2]
[363790860,1748873378015,-2371.68,0.00019452,2]
[363790861,1748873378042,-420.0,0.00019452,2]
[363790862,1748873378067,-694.26,0.00019452,2]
[363790863,1748873378093,-420.0,0.00019452,2]
[363790864,1748873378118,-420.0,0.00019452,2]
[363790865,1748873378144,-1313.33,0.00019452,2]
[363790866,1748873378170,-438.58,0.00019452,2]
[363790867,1748873378196,-420.0,0.00019452,2]
[363790868,1748873378221,-420.0,0.00019452,2]
[363790869,1748873378245,-420.0,0.00019452,2]
[363790870,1748873378270,-420.0,0.00019452,2]
[363790871,1748873378296,-420.0,0.00019452,2]
[363790872,1748873378321,-420.0,0.00019452,2]
[363790873,1748873378350,-420.0,0.00019452,2]
[363790874,1748873378378,-1231.51,0.00019452,2]
[363790875,1748873378403,-420.0,0.00019452,2]
[363790876,1748873378428,-420.0,0.00019452,2]
[363790877,1748873378456,-574.84,0.00019452,2]
[363790878,1748873378695,-904.9,0.00019452,2]
[363790879,1748873378721,-420.0,0.00019452,2]
[363790880,1748873378746,-997.87,0.00019452,2]
[363790881,1748873378771,-420.0,0.00019452,2]
[363790882,1748873378794,-303.72,0.00019452,2]
[363790883,1748873378821,-2191.7,0.00019452,2]
[363790884,1748873378846,-420.0,0.00019452,2]
[363790885,1748873378871,-420.0,0.00019452,2]
[363790886,1748873378895,-1510.23,0.00019452,2]
[363790887,1748873378919,-549.1,0.00019452,2]
[363790888,1748873378946,-804.59,0.00019452,2]
[363790889,1748873378973,-1206.91,0.00019452,2]
[363790890,1748873379001,-621.73528574,0.00019478,2]
[363790891,1748873379026,-2888.59388562,0.00019583,2]
[363790892,1748873379050,-420.0,0.00019589,2]
[363790893,1748873379074,-420.0,0.00019589,2]
[363790894,1748873379098,-420.0,0.00019589,2]
[363790895,1748873379123,-420.0,0.00019589,2]
[363790896,1748873379148,-420.0,0.00019589,2]
[363790897,1748873379173,-740.23,0.00019589,2]
[363790898,1748873379207,-420.0,0.00019589,2]
[363790899,1748873379239,-420.0,0.00019589,2]
[363790900,1748873379267,-420.0,0.00019589,2]
[363790901,1748873379295,-420.0,0.00019589,2]
[363790902,1748873379322,-420.0,0.00019589,2]
[363790903,1748873379350,-420.0,0.00019589,2]
[363790904,1748873379378,-420.0,0.00019589,2]
[363790905,1748873379405,-420.0,0.00019589,2]
[363790906,1748873379433,-420.0,0.00019589,2]
[363790907,1748873379460,-420.0,0.00019589,2]
[363790908,1748873379486,-420.0,0.00019589,2]
[363790909,1748873379511,-420.0,0.00019589,2]
[363790910,1748873379536,-420.0,0.00019589,2]
[363790911,1748873379564,-420.0,0.00019589,2]
[363790912,1748873379589,-420.0,0.00019589,2]
[363790913,1748873379616,-420.0,0.00019589,2]
[363790914,1748873379641,-492.78,0.00019589,2]
[363790915,1748873379668,-420.0,0.00019589,2]
[363790916,1748873379695,-420.0,0.00019589,2]
[363790917,1748873379720,-489.50591032,0.00019589,2]
[363790918,1748873379746,-405.037872,0.00019589,2]
[363790919,1748873379771,-420.0,0.00019589,2]
[363790920,1748873379796,-420.0,0.00019589,2]
[363790921,1748873379821,-420.0,0.00019589,2]
[363790922,1748873379846,-420.0,0.00019589,2]
[363790923,1748873379871,-1445.87,0.00019589,2]
[363790924,1748873379896,-420.0,0.00019589,2]
[363790925,1748873379920,-843.91,0.00019589,2]
[363790926,1748873379947,-915.6,0.00019589,2]
[363790927,1748873379972,-420.0,0.00019589,2]
[363790928,1748873379998,-6089.36,0.00019589,2]
[363790929,1748873380023,-420.0,0.00019589,2]
[363790930,1748873380048,-420.0,0.00019589,2]
[363790931,1748873380073,-507.9,0.00019589,2]
[363790932,1748873380098,-420.0,0.00019589,2]
[363790933,1748873380123,-932.22,0.00019589,2]
[363790934,1748873380147,-232.63401004,0.00019589,2]
[363790935,1748873380171,-420.0,0.00019589,2]
[363790936,1748873380199,-1791.73,0.00019589,2]
[363790937,1748873380225,-770.85,0.00019589,2]
[363790938,1748873380253,-985.29,0.00019589,2]
[363790939,1748873380278,-420.0,0.00019589,2]
[363790940,1748873380305,-420.0,0.00019589,2]
[363790941,1748873380332,-420.0,0.00019589,2]
[363790942,1748873380358,-1104.8,0.00019589,2]
[363790943,1748873380385,-420.0,0.00019589,2]
[363790944,1748873380410,-482.41,0.00019589,2]
[363790945,1748873380437,-617.32,0.00019589,2]
[363790946,1748873380466,-1951.21,0.00019589,2]
[363790947,1748873380491,-437.13,0.00019589,2]
[363790948,1748873380518,-420.0,0.00019589,2]
[363790949,1748873380545,-2687.95,0.00019589,2]
[363790950,1748873380574,-420.0,0.00019589,2]
[363790951,1748873380599,-497.44,0.00019589,2]
[363790952,1748873380625,-2986.15,0.00019589,2]
[363790953,1748873380652,-581.7,0.00019589,2]
[363790954,1748873380677,-467.75295282,0.00019589,2]
[363790955,1748873380705,-631.16,0.00019589,2]
[363790956,1748873380732,-420.0,0.00019589,2]
[363790957,1748873380757,-485.84,0.00019589,2]
[363790958,1748873380782,-420.0,0.00019589,2]
[363790959,1748873380808,-420.0,0.00019589,2]
[363790960,1748873380834,-733.7,0.00019589,2]
[363790961,1748873380862,-420.0,0.00019589,2]
[363790962,1748873380888,-574.97,0.00019589,2]
[363790963,1748873380913,-420.0,0.00019589,2]
[363790964,1748873380940,-420.0,0.00019589,2]
[363790965,1748873380967,-746.85,0.00019589,2]
[363790966,1748873380993,-420.0,0.00019589,2]
[363790967,1748873381020,-11682.92,0.00019589,2]
[363790968,1748873381046,-293.44,0.00019589,2]
[363790969,1748873381072,-556.32,0.00019589,2]
[363790971,1748873381098,-420.0,0.00019589,2]
[363790972,1748873381125,-420.0,0.00019589,2]
[363790973,1748873381154,-835.08,0.00019589,2]
[363790974,1748873381181,-909.26,0.00019589,2]
[363790975,1748873381210,-420.0,0.00019589,2]
[363790976,1748873381237,-420.0,0.00019589,2]
[363790977,1748873381267,-625.66,0.00019589,2]
[363790978,1748873381295,-420.0,0.00019589,2]
[363790979,1748873381321,-420.0,0.00019589,2]
[363790980,1748873381348,-640.86,0.00019589,2]
[363790981,1748873381378,-2371.68,0.00019589,2]
[363790982,1748873381619,-420.0,0.00019589,2]
[363790983,1748873381646,-694.26,0.00019589,2]
[363790984,1748873381673,-420.0,0.00019589,2]
[363790985,1748873381702,-420.0,0.00019589,2]
[363790986,1748873381728,-1313.33,0.00019589,2]
[363790987,1748873381754,-438.58,0.00019589,2]
[363790988,1748873381780,-420.0,0.00019589,2]
[363790989,1748873381805,-420.0,0.00019589,2]
[363790990,1748873381831,-420.0,0.00019589,2]
[363790991,1748873381856,-420.0,0.00019589,2]
[363790992,1748873381882,-420.0,0.00019589,2]
[363790993,1748873381907,-420.0,0.00019589,2]
[363790994,1748873381934,-420.0,0.00019589,2]
[363790995,1748873381961,-1231.51,0.00019589,2]
[363790996,1748873381986,-420.0,0.00019589,2]
[363790997,1748873382011,-215.89,0.00019589,2]
[363790998,1748873382036,-574.84,0.00019589,2]
[363790999,1748873382059,-904.9,0.00019589,2]
[363791000,1748873382085,-420.0,0.00019589,2]
[363791001,1748873382116,-997.87,0.00019589,2]
[363791002,1748873382143,-420.0,0.00019589,2]
[363791003,1748873382172,-2191.7,0.00019589,2]
[363791004,1748873382200,-420.0,0.00019589,2]
[363791005,1748873382228,-420.0,0.00019589,2]
[363791006,1748873382253,-1510.23,0.00019589,2]
[363791007,1748873382280,-549.1,0.00019589,2]
[363791008,1748873382308,-804.59,0.00019589,2]
[363791009,1748873382336,-1206.91,0.00019589,2]
[363791010,1748873382361,-227.52,0.000196,2]
[363791011,1748873382385,-300.0,0.000196,2]
[363791012,1748873382410,-150.0,0.000196,2]
[363791013,1748873382440,-150.0,0.000196,2]
[363791014,1748873382464,-300.0,0.000196,2]
[363791015,1748873382489,-150.22,0.000196,2]
[363791016,1748873382513,-908.32,0.000196,2]
[363791017,1748873382536,-1161.73,0.000196,2]
[363791018,1748873382564,-908.22,0.000196,2]
[363791019,1748873382587,-150.0,0.000196,2]
[363791020,1748873382612,-163.09,0.000196,2]
[363791021,1748873382637,-163.09,0.000196,2]
[363791022,1748873382661,-648.0,0.00019671,2]
[363791023,1748873382684,-150.0,0.00019683,2]
[363791024,1748873382709,-300.0,0.000197,7]
[363791025,1748873382733,-420.0,0.00019726,2]
[363791026,1748873382757,-420.0,0.00019726,2]
[363791027,1748873382781,-420.0,0.00019726,2]
[363791028,1748873382805,-420.0,0.00019726,2]
[363791029,1748873382828,-420.0,0.00019726,2]
[363791030,1748873382852,-740.23,0.00019726,2]
[363791031,1748873382877,-420.0,0.00019726,2]
[363791032,1748873382901,-420.0,0.00019726,2]
[363791033,1748873382926,-420.0,0.00019726,2]
[363791034,1748873382951,-420.0,0.00019726,2]
[363791035,1748873382975,-420.0,0.00019726,2]
[363791036,1748873382999,-420.0,0.00019726,2]
[363791037,1748873383024,-420.0,0.00019726,2]
[363791038,1748873383057,-420.0,0.00019726,2]
[363791039,1748873383087,-420.0,0.00019726,2]
[363791040,1748873383114,-436.54696889,0.00019726,2]
[363791041,1748873383139,-420.0,0.00019726,2]
[363791042,1748873383165,-420.0,0.00019726,2]
[363791043,1748873383192,-420.0,0.00019726,2]
[363791044,1748873383218,-420.0,0.00019726,2]
[363791045,1748873383243,-420.0,0.00019726,2]
[363791046,1748873383269,-420.0,0.00019726,2]
[363791047,1748873383295,-492.78,0.00019726,2]
[363791048,1748873383319,-420.0,0.00019726,2]
[363791049,1748873383346,-420.0,0.00019726,2]
[363791050,1748873383371,-420.0,0.00019726,2]
[363791051,1748873383397,-420.0,0.00019726,2]
[363791052,1748873383423,-317.12280643,0.00019726,2]
[363791053,1748873383449,-420.0,0.00019726,2]
[363791054,1748873383474,-1445.87,0.00019726,2]
[363791055,1748873383498,-420.0,0.00019726,2]
[363791056,1748873383523,-843.91,0.00019726,2]
[363791057,1748873383547,-915.6,0.00019726,2]
[363791058,1748873383579,-420.0,0.00019726,2]
[363791059,1748873383606,-6089.36,0.00019726,2]
[363791060,1748873383633,-420.0,0.00019726,2]
[363791061,1748873383663,-420.0,0.00019726,2]
[363791062,1748873383690,-507.9,0.00019726,2]
[363791063,1748873383716,-420.0,0.00019726,2]
[363791064,1748873383743,-932.22,0.00019726,2]
[363791065,1748873383770,-1791.73,0.00019726,2]
[363791066,1748873383796,-770.85,0.00019726,2]
[363791067,1748873383825,-985.29,0.00019726,2]
[363791068,1748873383850,-420.0,0.00019726,2]
[363791069,1748873383875,-420.0,0.00019726,2]
[363791070,1748873383902,-420.0,0.00019726,2]
[363791071,1748873383929,-1104.8,0.00019726,2]
[363791072,1748873383957,-482.41,0.00019726,2]
[363791073,1748873383983,-617.32,0.00019726,2]
[363791074,1748873384011,-1951.21,0.00019726,2]
[363791075,1748873384037,-437.13,0.00019726,2]
[363791076,1748873384062,-420.0,0.00019726,2]
[363791077,1748873384090,-2687.95,0.00019726,2]
[363791078,1748873384117,-497.44,0.00019726,2]
[363791079,1748873384144,-2986.15,0.00019726,2]
[363791080,1748873384173,-581.7,0.00019726,2]
[363791081,1748873384207,-631.16,0.00019726,2]
[363791082,1748873384232,-420.0,0.00019726,2]
[363791083,1748873384259,-485.84,0.00019726,2]
[363791084,1748873384286,-420.0,0.00019726,2]
[363791085,1748873384313,-420.0,0.00019726,2]
[363791086,1748873384565,-733.7,0.00019726,2]
[363791087,1748873384593,-420.0,0.00019726,2]
[363791088,1748873384618,-574.97,0.00019726,2]
[363791089,1748873384643,-420.0,0.00019726,2]
[363791090,1748873384668,-420.0,0.00019726,2]
[363791091,1748873384694,-746.85,0.00019726,2]
[363791092,1748873384719,-11682.92,0.00019726,2]
[363791093,1748873384744,-556.32,0.00019726,2]
[363791094,1748873384769,-420.0,0.00019726,2]
[363791095,1748873384802,-420.0,0.00019726,2]
[363791096,1748873384828,-835.08,0.00019726,2]
[363791097,1748873384853,-909.26,0.00019726,2]
[363791098,1748873384877,-420.0,0.00019726,2]
[363791099,1748873384902,-420.0,0.00019726,2]
[363791100,1748873384929,-625.66,0.00019726,2]
[363791101,1748873384955,-420.0,0.00019726,2]
[363791102,1748873384979,-420.0,0.00019726,2]
[363791103,1748873385004,-640.86,0.00019726,2]
[363791104,1748873385032,-2371.68,0.00019726,2]
[363791105,1748873385057,-420.0,0.00019726,2]
[363791106,1748873385081,-694.26,0.00019726,2]
[363791107,1748873385106,-420.0,0.00019726,2]
[363791108,1748873385132,-179.89,0.00019726,2]
[363791109,1748873385158,-1313.33,0.00019726,2]
[363791110,1748873385184,-438.58,0.00019726,2]
[363791111,1748873385212,-420.0,0.00019726,2]
[363791112,1748873385237,-420.0,0.00019726,2]
[363791113,1748873385262,-420.0,0.00019726,2]
[363791114,1748873385288,-420.0,0.00019726,2]
[363791115,1748873385316,-420.0,0.00019726,2]
[363791116,1748873385342,-420.0,0.00019726,2]
[363791117,1748873385369,-1231.51,0.00019726,2]
[363791118,1748873385393,-420.0,0.00019726,2]
[363791119,1748873385419,-574.84,0.00019726,2]
[363791120,1748873385444,-904.9,0.00019726,2]
[363791121,1748873385469,-420.0,0.00019726,2]
[363791122,1748873385494,-997.87,0.00019726,2]
[363791123,1748873385519,-224.93390018,0.00019726,2]
[363791124,1748873385546,-2191.7,0.00019726,2]
[363791125,1748873385570,-420.0,0.00019726,2]
[363791126,1748873385593,-420.0,0.00019726,2]
[363791127,1748873385619,-1510.23,0.00019726,2]
[363791128,1748873385646,-549.1,0.00019726,2]
[363791129,1748873385673,-1206.91,0.00019726,2]
[363791130,1748873385699,-804.59,0.00019726,2]
[363791131,1748873385723,-981.0371641,0.00019778,2]
[363791132,1748873385748,-600.0,0.000198,7]
[363791133,1748873385772,-49120.79281689,0.000198,2]
[363791134,1748873385795,-300.0,0.00019831,2]
[363791135,1748873385823,-500.0,0.00019862,2]
[363791136,1748873385848,-420.0,0.00019863,2]
[363791137,1748873385873,-420.0,0.00019863,2]
[363791138,1748873385897,-420.0,0.00019863,2]
[363791139,1748873385921,-740.23,0.00019863,2]
[363791140,1748873385946,-226.9,0.00019863,2]
[363791141,1748873385971,-420.0,0.00019863,2]
[363791142,1748873385995,-420.0,0.00019863,2]
[363791143,1748873386019,-420.0,0.00019863,2]
[363791144,1748873386042,-420.0,0.00019863,2]
[363791145,1748873386066,-420.0,0.00019863,2]
[363791146,1748873386090,-420.0,0.00019863,2]
[363791147,1748873386115,-420.0,0.00019863,2]
[363791148,1748873386140,-420.0,0.00019863,2]
[363791149,1748873386165,-420.0,0.00019863,2]
[363791150,1748873386191,-420.0,0.00019863,2]
[363791151,1748873386217,-492.78,0.00019863,2]
[363791152,1748873386242,-420.0,0.00019863,2]
[363791153,1748873386266,-420.0,0.00019863,2]
[363791154,1748873386292,-420.0,0.00019863,2]
[363791155,1748873386318,-1445.87,0.00019863,2]
[363791156,1748873386343,-420.0,0.00019863,2]
[363791157,1748873386368,-843.91,0.00019863,2]
[363791158,1748873386394,-915.6,0.00019863,2]
[363791159,1748873386419,-420.0,0.00019863,2]
[363791160,1748873386446,-6089.36,0.00019863,2]
[363791161,1748873386472,-420.0,0.00019863,2]
[363791162,1748873386499,-420.0,0.00019863,2]
[363791163,1748873386524,-507.9,0.00019863,2]
[363791164,1748873386550,-223.52,0.00019863,2]
[363791165,1748873386577,-932.22,0.00019863,2]
[363791166,1748873386602,-1791.73,0.00019863,2]
[363791167,1748873386627,-770.85,0.00019863,2]
[363791168,1748873386654,-985.29,0.00019863,2]
[363791169,1748873386679,-420.0,0.00019863,2]
[363791170,1748873386707,-420.0,0.00019863,2]
[363791171,1748873386731,-420.0,0.00019863,2]
[363791172,1748873386758,-1104.8,0.00019863,2]
[363791173,1748873386782,-482.41,0.00019863,2]
[363791174,1748873386806,-617.32,0.00019863,2]
[363791175,1748873386834,-1951.21,0.00019863,2]
[363791176,1748873386858,-437.13,0.00019863,2]
[363791177,1748873386884,-2687.95,0.00019863,2]
[363791178,1748873386913,-497.44,0.00019863,2]
[363791179,1748873386938,-2986.15,0.00019863,2]
[363791180,1748873386963,-581.7,0.00019863,2]
[363791181,1748873386989,-631.16,0.00019863,2]
[363791182,1748873387014,-420.0,0.00019863,2]
[363791183,1748873387039,-485.84,0.00019863,2]
[363791184,1748873387063,-554.58397318,0.00019863,2]
[363791185,1748873387088,-420.0,0.00019863,2]
[363791186,1748873387113,-733.7,0.00019863,2]
[363791187,1748873387140,-420.0,0.00019863,2]
[363791188,1748873387166,-574.97,0.00019863,2]
[363791189,1748873387375,-420.0,0.00019863,2]
[363791190,1748873387403,-420.0,0.00019863,2]
[363791191,1748873387431,-746.85,0.00019863,2]
[363791192,1748873387458,-11682.92,0.00019863,2]
[363791193,1748873387483,-556.32,0.00019863,2]
[363791194,1748873387509,-420.0,0.00019863,2]
[363791195,1748873387534,-420.0,0.00019863,2]
[363791196,1748873387561,-835.08,0.00019863,2]
[363791197,1748873387587,-909.26,0.00019863,2]
[363791198,1748873387611,-420.0,0.00019863,2]
[363791199,1748873387637,-420.0,0.00019863,2]
[363791200,1748873387665,-625.66,0.00019863,2]
[363791201,1748873387690,-420.0,0.00019863,2]
[363791202,1748873387717,-420.0,0.00019863,2]
[363791203,1748873387742,-640.86,0.00019863,2]
[363791204,1748873387771,-2371.68,0.00019863,2]
[363791205,1748873387797,-420.0,0.00019863,2]
[363791206,1748873387822,-694.26,0.00019863,2]
[363791207,1748873387847,-420.0,0.00019863,2]
[363791208,1748873387873,-1313.33,0.00019863,2]
[363791209,1748873387898,-438.58,0.00019863,2]
[363791210,1748873387923,-420.0,0.00019863,2]
[363791211,1748873387948,-420.0,0.00019863,2]
[363791212,1748873387973,-420.0,0.00019863,2]
[363791213,1748873388010,-420.0,0.00019863,2]
[363791214,1748873388039,-420.0,0.00019863,2]
[363791215,1748873388067,-420.0,0.00019863,2]
[363791216,1748873388098,-1231.51,0.00019863,2]
[363791217,1748873388128,-420.0,0.00019863,2]
[363791218,1748873388162,-574.84,0.00019863,2]
[363791219,1748873388195,-904.9,0.00019863,2]
[363791220,1748873388224,-420.0,0.00019863,2]
[363791221,1748873388254,-997.87,0.00019863,2]
[363791222,1748873388287,-2191.7,0.00019863,2]
[363791223,1748873388318,-420.0,0.00019863,2]
[363791224,1748873388349,-420.0,0.00019863,2]
[363791225,1748873388378,-1510.23,0.00019863,2]
[363791226,1748873388407,-549.1,0.00019863,2]
[363791227,1748873388438,-1206.91,0.00019863,2]
[363791228,1748873388472,-804.59,0.00019863,2]
[363791229,1748873388500,-409.3398452,0.000199,2]
[363791230,1748873388530,-4200.61937017,0.000199,2]
[363791231,1748873388572,-1000.0,0.000199,7]
[363791232,1748873388607,-5943.79885021,0.000199,2]
[363791233,1748873388636,-1000.0,0.000199,2]
[363791234,1748873388667,-289.136,0.00019904,2]
[363791235,1748873388694,-1467.0,0.00019904,2]
[363791236,1748873388720,-801.0,0.00019904,2]
[363791237,1748873388747,-635.0,0.00019904,2]
[363791238,1748873388774,-2888.59388562,0.00019913,2]
[363791239,1748873388799,-2875.676,0.00019918,2]
[363791240,1748873388824,-321.30097895,0.00019921,2]
[363791241,1748873388850,-588.0,0.00019939,2]
[363791242,1748873388877,-557.0,0.00019939,2]
[363791243,1748873388902,-925.0,0.00019939,2]
[363791244,1748873388925,-1271.0,0.00019939,2]
[363791245,1748873388950,-882.0,0.00019939,2]
[363791246,1748873388976,-1157.0,0.00019939,2]
[363791247,1748873389003,-167.891,0.0001994,2]
[363791248,1748873389027,-166.7742122,0.00019973,2]
[363791249,1748873389053,-500.0,0.00019973,2]
[363791250,1748873389083,-528.3821354,0.00019973,2]
[363791251,1748873389109,-500.0,0.00019973,2]
[363791252,1748873389135,-502.01642737,0.00019973,2]
[363791253,1748873389161,-500.0,0.00019973,2]
[363791254,1748873389188,-500.0,0.00019973,2]
[363791255,1748873389217,-626.97708266,0.00019973,2]
[363791256,1748873389244,-235.9059719,0.00019973,2]
[363791257,1748873389271,-12500.0,0.00019973,2]
[363791258,1748873389298,-8944.17776901,0.00019973,2]
[363791259,1748873390114,1000.0,0.00018436,2]
[363791260,1748873390435,150.0,0.000241,120]
[363791261,1748873391605,203.0,0.00018202,2]
[363791271,1748873415793,270.57878081,0.00023,30]
[363791272,1748873416917,1157.0,0.00023,30]
[363791273,1748873424826,500.0,0.00023,30]
[363791274,1748873431417,228.437149,0.000241,120]
[363791282,1748873432292,-420.0,0.00019178,2]
[363791283,1748873432303,-420.0,0.00019178,2]
[363791284,1748873432313,-473.37,0.00019178,2]
[363791285,1748873432323,-420.0,0.00019178,2]
[363791286,1748873432334,-420.0,0.00019178,2]
[363791287,1748873432345,-582.18,0.00019178,2]
[363791288,1748873432355,-1623.55591552,0.00019178,2]
[363791289,1748873432460,-2943.46408448,0.00019178,2]
[363791290,1748873432471,-1463.4,0.00019178,2]
[363791291,1748873432480,-462.99,0.00019178,2]
[363791292,1748873432493,-420.0,0.00019178,2]
[363791293,1748873432503,-420.0,0.00019178,2]
[363791294,1748873432513,-420.0,0.00019178,2]
[363791295,1748873432524,-420.0,0.00019178,2]